Cogmind - Beta 13 @@@ ROGUE MODE // 2024.05.11 @ 14:48:41 Player: Lunace Result: Destroyed by D-53 Grenadier with Mini Grenade Launcher Performance ------------- Evolutions (1) 500 Regions Visited (4) 800 Robots Destroyed (57) 285 Value Destroyed (1271) 1271 Prototype IDs (6) 120 Alien Tech Used (0) 0 Bonus (83) 83 TOTAL SCORE: 3059 Bonus ------- High Alert Combat Kills 167 Friendly Fire -84 Cogmind --------- Core Integrity 0/400 Matter 187/300 Energy 265/265 System Corruption 4% Temperature Cool (66) Movement Walking (260) Ox2 Location -9/Mines Parts ------- > --- POWER (1) -------- Improved Ion Engine > --- PROPULSION (3) --- Aluminum Leg > --- UTILITY (3) ------ Medium Storage Unit Improved Terrain Scanner Improved Terrain Scan Processor > --- WEAPON (2) ------- Bore Cannon > --- INVENTORY (10) --- Light Angular Momentum Engine Small Storage Unit Signal Interpreter Armor Integrity Analyzer Phase Shifter System Shield Long-range Tractor Beam Thief Drone Bay (3/3) Assault Rifle Shotgun Peak State ------------ > --- POWER ------------ Light Angular Momentum Engine > --- PROPULSION ------- Carbon-fiber Leg Carbon-fiber Leg Armored Wheel > --- UTILITY ---------- Medium Storage Unit Terrain Scanner Improved Terrain Scan Processor > --- WEAPON ----------- Advanced Beam Cannon Shotgun > --- INVENTORY -------- Improved Heat Sink Small Storage Unit Signal Interpreter System Shield Long-range Tractor Beam Assault Rifle Shotgun [Rating: 24] Favorites ----------- Power Ion Engine Engine Ion Engine Propulsion Light Treads Treads Light Treads Leg Carbon-fiber Leg Wheel Wheel Utility Medium Storage Unit Device Heat Sink Storage Medium Storage Unit Processor Improved Terrain Scan Processor Protection Light Armor Plating Weapon Shotgun Energy Gun Medium Laser Energy Cannon Advanced Beam Cannon Ballistic Gun Shotgun Ballistic Cannon Bore Cannon Launcher Rocket Launcher Build | -11 -10 -10 -9 -9 ------- Run | Yrd Mat Min Mat Min Slots Evolved 2 | . . . 2 . Power . | . . . . . Propulsion 1 | . . . 1 . Utility 1 | . . . 1 . Weapon . | . . . . . Parts Attached 54 | 7 6 9 24 8 Power 6 | 1 . 1 3 1 Engine 6 | 1 . 1 3 1 Core . | . . . . . Reactor . | . . . . . Propulsion 15 | 2 . 4 7 2 Treads 2 | 2 . . . . Leg 11 | . . 4 5 2 Wheel 2 | . . . 2 . Hover . | . . . . . Flight . | . . . . . Utility 15 | 2 2 4 5 2 Device 8 | 1 1 1 3 2 Storage 3 | 1 1 1 . . Processor 1 | . . . 1 . Hackware . | . . . . . Protection 3 | . . 2 1 . Artifact . | . . . . . Weapon 18 | 2 4 . 9 3 Energy Gun 4 | 2 2 . . . Energy Cannon 1 | . . . 1 . Ballistic Gun 11 | . 2 . 7 2 Ballistic Cannon 1 | . . . . 1 Launcher 1 | . . . 1 . Special Weapon . | . . . . . Impact Weapon . | . . . . . Slashing Weapon . | . . . . . Piercing Weapon . | . . . . . Special Melee Weapon . | . . . . . Unidentified Prototypes 2 | . . . 1 1 Parts Lost 15 | . . 2 8 5 Power . | . . . . . Propulsion 9 | . . 2 4 3 Utility 1 | . . . 1 . Weapon 5 | . . . 3 2 Highest Loss Streak 4 | . . 2 4 3 To Critical Strikes . | . . . . . Average Slot Usage (%) 96 | . 99 100 94 92 Engine 12 | . 14 14 10 11 Treads 12 | . 28 23 . . Leg 15 | . . 4 28 25 Device 8 | . 14 2 6 11 Storage 12 | . 14 14 11 11 Processor 5 | . . . 10 11 Protection 3 | . . 11 4 . Energy Gun 6 | . 18 . . . Ballistic Gun 16 | . 9 28 18 17 Naked Turns . | . . . . . Heaviest Build 38 | 14 32 38 28 26 Greatest Support 43 | 40 40 40 43 33 Greatest Overweight (x) 3 | 3 . . 2 2 Average Overweight (x) . | . . . . . Largest Inventory Capacity 15 | 8 15 15 10 10 Average Capacity 11 | 7 13 14 10 10 Most Carried 15 | 5 14 15 10 10 Average Carried 9 | 3 10 13 9 8 Final Capacity 15 | 8 15 10 10 10 Final Carried 14 | 5 14 8 9 10 Class Distribution -------------------- 84% | Mutant 15% | Scavenger-Mutant Dominant Class ---------------- Mutant | -10/Materials Mutant | -10/Mines Mutant | -9/Materials Mutant | -9/Mines Resources | -11 -10 -10 -9 -9 ----------- Run | Yrd Mat Min Mat Min Matter Collected 1453 | 270 104 190 741 148 Remotely 323 | . . . 175 148 Salvage Created 1569 | 185 229 163 936 56 Parts 115 | 15 20 7 73 . Haulers Intercepted . | . . . . . Recyclers Shooed 5 | . 2 . 3 . Parts Field Recycled . | . . . . . Retrieved Matter . | . . . . . Parts Self-Destructed . | . . . . . Prevented . | . . . . . Kills | -11 -10 -10 -9 -9 ------- Run | Yrd Mat Min Mat Min Combat Hostiles Destroyed 56 | . 8 6 25 17 Guns 36 | . 8 6 18 4 AOE 20 | . . . 7 13 Classes Destroyed 9 | 3 3 . 2 1 Worker 2 | 2 . . . . Builder 2 | . . . 2 . Tunneler 4 | 3 . . 1 . Recycler 2 | 1 . . 1 . Watcher 8 | . 3 . 5 . Swarmer 16 | . 6 3 7 . Grunt 16 | . 2 3 11 . Sentry 7 | . . . 7 . Assembled 17 | . . . . 17 Best Kill Streak 17 | 5 3 6 9 17 Combat Bots Only 17 | . 3 6 7 17 Max Kills in Single Turn 5 | 1 1 1 3 5 Gunslinging . | . . . . . Exploded 5 | . . . 2 5 Melee . | . . . . . Uniques/NPCs Destroyed . | . . . . . Combat | -11 -10 -10 -9 -9 -------- Run | Yrd Mat Min Mat Min Hostile Shots Fired 233 | . 43 36 123 31 Missed 71 | . 14 14 38 5 Damage Taken 2475 | . 258 253 1228 736 Core 440 | . 33 6 256 145 Absorbed by Shields . | . . . . . Regen/Repaired (Parts) 67 | . . . 67 . Core Remaining (%) 92 | 100 . 84 . . Volleys Fired 150 | 15 28 13 74 20 Largest 2 | 2 2 2 2 2 Hottest 90 | 90 90 46 56 77 Shots Fired 261 | 30 54 26 124 27 Gun 237 | 30 54 26 112 15 Cannon 7 | . . . . 7 Launcher 17 | . . . 12 5 Special . | . . . . . Kinetic 178 | . 18 26 112 22 Thermal 66 | 30 36 . . . Explosive 17 | . . . 12 5 Electromagnetic . | . . . . . Robot Hit Streak 11 | 7 7 9 11 7 Robot Miss Streak 6 | 2 6 5 6 5 Penetration Max . | . . . . . Secondary Targets . | . . . . . Shots Hit Robots 167 | 19 33 18 81 16 Core Hits 128 | 7 17 10 58 36 Critical Kills 1 | . . 1 . . Critical Parts Destroyed 5 | . . 1 3 1 Critical Strikes 7 | . 1 2 3 1 Burn 1 | . 1 . . . Destroy 6 | . . 2 3 1 Melee Attacks . | . . . . . Impact . | . . . . . Slashing . | . . . . . Piercing . | . . . . . Sneak Attacks . | . . . . . Combat Hostiles . | . . . . . Follow-up Attacks . | . . . . . Damage Inflicted 4078 | 219 424 279 1959 1197 Guns 2182 | 219 424 279 1100 160 Cannons 80 | . . . . 80 Explosions 1816 | . . . 859 957 Melee . | . . . . . Ramming . | . . . . . Kinetic 1757 | . 138 279 1100 240 Thermal 618 | 219 286 . 113 . Explosive 1693 | . . . 736 957 Electromagnetic 10 | . . . 10 . Impact . | . . . . . Slashing . | . . . . . Piercing . | . . . . . Highest Corruption 4 | . . . 4 4 Average Corruption 4 | . . . 4 4 Corruption Purged . | . . . . . Corruption Blocked . | . . . . . Effects 22 | . . . 19 3 Message Errors 4 | . . . 4 . Matter Fused 3 | . . . 2 1 Heat Flow Errors 3 | . . . 3 . Energy Discharges 7 | . . . 6 1 Data Loss (minor) 1 | . . . 1 . Data Loss (major) 2 | . . . 1 1 Weapon Failures 2 | . . . 2 . Overload Shots . | . . . . . Overflow Damage 26 | . . . 22 4 Projectiles . | . . . . . Explosions 26 | . . . 22 4 Melee . | . . . . . Knockbacks 1 | . . . . 1 Impact . | . . . . . Kinetic 1 | . . . . 1 Secondary . | . . . . . Self-Inflicted Damage 140 | . . . 109 31 Shots 2 | . . . 1 1 Rammed . | . . . . . Targets Rammed . | . . . . . Kicked . | . . . . . Crushed . | . . . . . Highest Temperature 279 | 120 228 30 279 66 Average Temperature 64 | 53 121 16 78 30 Received Heat Transfer 512 | . 48 63 381 20 Siege Activations . | . . . . . Robots Corrupted . | . . . . . Combat Hostiles . | . . . . . Parts Fried . | . . . . . Impact Corruptions . | . . . . . Robots Melted . | . . . . . Combat Hostiles . | . . . . . Parts Melted 3 | . 3 . . . Heat Transferred 1439 | 571 818 . 50 . Parts Sabotaged . | . . . . . Parts Stolen . | . . . . . Parts Stripped . | . . . . . Power Chain Reactions . | . . . . . Alert | -11 -10 -10 -9 -9 ------- Run | Yrd Mat Min Mat Min Peak Influence 818 | 30 146 192 818 300 Initial 265 | . 19 52 70 265 Average 232 | 12 76 89 431 281 Maximum Alert Level 3 | . . . 3 1 Low Security (%) 59 | 100 100 100 17 . Level 1 14 | . . . 18 100 Level 2 22 | . . . 53 . Level 3 4 | . . . 10 . Level 4 . | . . . . . Level 5 . | . . . . . High Security . | . . . . . Max Security . | . . . . . Squads Dispatched 4 | . 1 . 3 . Investigation . | . . . . . Extermination . | . . . . . Reinforcement 4 | . 1 . 3 . Assault . | . . . . . Garrison . | . . . . . Intercept . | . . . . . Searches Triggered . | . . . . . Construction Impeded 1 | . . . 1 . Haulers Reinforced . | . . . . . Active Scanning Responses . | . . . . . Cargo Convoy Interrupts . | . . . . . Stealth | -11 -10 -10 -9 -9 --------- Run | Yrd Mat Min Mat Min Distress Signals 5 | . . . 5 . Communications Jammed . | . . . . . Distress Signals . | . . . . . Times Spotted 93 | . 17 7 42 27 Peak Tracking Total 19 | . 3 5 8 19 Tactical Retreats 7 | . 1 . 5 1 Traps | -11 -10 -10 -9 -9 ------- Run | Yrd Mat Min Mat Min Traps Triggered 2 | . . 1 1 . Indirectly . | . . . . . Trap Hack Attempts . | . . . . . Triggered . | . . . . . Disarmed . | . . . . . Reprogrammed . | . . . . . Reused . | . . . . . Traps Extracted . | . . . . . Installed . | . . . . . Triggered . | . . . . . Machines | -11 -10 -10 -9 -9 ---------- Run | Yrd Mat Min Mat Min Machines Disabled 2 | . . . 2 . Max in Single Turn 1 | . . . 1 . Machines Repaired . | . . . . . Machines Dismantled . | . . . . . Machines Sabotaged . | . . . . . Overloaded Fab Kills . | . . . . . Hacking | -11 -10 -10 -9 -9 --------- Run | Yrd Mat Min Mat Min Machines Accessed 11 | . 2 1 7 1 Terminals 7 | . 2 . 5 . Fabricators . | . . . . . Repair Stations 1 | . . . 1 . Recycling Units 1 | . . . 1 . Scanalyzers . | . . . . . Garrison Access . | . . . . . Total Hacks 29 | . 6 1 21 1 Successful 17 | . 2 1 13 1 Failed 12 | . 4 . 8 . Catastrophic . | . . . . . Database Lockouts . | . . . . . Manual 15 | . 6 . 9 . Terminals 23 | . 6 . 17 . Fabricators . | . . . . . Repair Stations 2 | . . . 2 . Recycling Units 2 | . . . 2 . Scanalyzers . | . . . . . Garrison Access . | . . . . . Terminal Hacks 8 | . . 1 6 1 Prototype ID Bank 2 | . . . 2 . Open Door 2 | . . 1 . 1 Branch Access Points 1 | . . . 1 . Locate Traps 1 | . . . 1 . Surveillance Status 1 | . . . 1 . Zone Layout 1 | . . . 1 . Fabricator Hacks . | . . . . . Repair Station Hacks 2 | . . . 2 . Scan Component 1 | . . . 1 . Repair 1 | . . . 1 . Recycling Unit Hacks . | . . . . . Scanalyzer . | . . . . . Garrison Access Hacks . | . . . . . Unauthorized Hacks 7 | . 2 . 5 . Terminals 6 | . 2 . 4 . Botnet 5 | . 1 . 4 . Operators 1 | . 1 . . . Fabricators . | . . . . . Repair Stations . | . . . . . Recycling Units 1 | . . . 1 . Recyclers 1 | . . . 1 . Scanalyzers . | . . . . . Garrison Access . | . . . . . Data Cores Recovered . | . . . . . Used . | . . . . . Hacking Detections 8 | . 2 . 6 . Full Trace Events . | . . . . . Feedback Events . | . . . . . Feedback Blocked . | . . . . . Robot Schematics Acquired . | . . . . . Robots Built . | . . . . . Authchips . | . . . . . Time . | . . . . . Total Robot Build Rating . | . . . . . Part Schematics Acquired . | . . . . . Parts Built . | . . . . . Authchips . | . . . . . Time . | . . . . . Total Part Build Rating . | . . . . . Parts Repaired 1 | . . . 1 . Time 32 | . . . 32 . Parts Recycled . | . . . . . Recycled Matter . | . . . . . Retrieved Matter . | . . . . . Retrieved Components . | . . . . . Parts Scanalyzed . | . . . . . Part Schematics Acquired . | . . . . . Parts Damaged . | . . . . . Bothacking | -11 -10 -10 -9 -9 ------------ Run | Yrd Mat Min Mat Min Used RIF Installer . | . . . . . Robots Hacked . | . . . . . Non-combat . | . . . . . Combat . | . . . . . Robot Hacks Applied . | . . . . . Relay Couplers Released . | . . . . . Fabnet Peak Effective % . | . . . . . Robots Rewired . | . . . . . Allies Hacked . | . . . . . Hacks Repelled . | . . . . . Allies | -11 -10 -10 -9 -9 -------- Run | Yrd Mat Min Mat Min Total Allies . | . . . . . Largest Group . | . . . . . Highest-Rated Group . | . . . . . Highest-Rated Ally . | . . . . . Total Orders . | . . . . . Ally Attacks . | . . . . . Total Damage . | . . . . . Kills . | . . . . . Allies Corrupted . | . . . . . Allies Melted . | . . . . . Intel | -11 -10 -10 -9 -9 ------- Run | Yrd Mat Min Mat Min Robot Analysis Total . | . . . . . Derelict Logs Recovered 1 | . . . . 1 Drone Launches . | . . . . . Drone Recoveries . | . . . . . Exploration | -11 -10 -10 -9 -9 ------------- Run | Yrd Mat Min Mat Min Turns Passed 1984 | 175 663 195 819 132 Spaces Moved 990 | 71 340 75 452 52 Core 6 | 6 . . . . Treads 463 | 65 340 58 . . Legs 450 | . . 17 385 48 Wheels 71 | . . . 67 4 Hover . | . . . . . Flight . | . . . . . Fastest Speed 50 | 50 160 120 110 110 Average Speed 138 | 155 160 150 119 121 Slowest Speed 200 | 200 160 160 190 190 Overloaded Moves . | . . . . . Propulsion Burnouts . | . . . . . Robots Hopped . | . . . . . Cave-ins Triggered . | . . . . . Exploration Rate (%) 32 | 5 57 28 55 16 Regions Visited 4 Branch Regions 2 Pre-discovered Areas . | . . . . . Known Exits Taken 1 | . . . 1 . Unknown Exits Taken 3 | 1 1 1 . . Scrap Searched . | . . . . . Spaces Dug 7 | . . . 7 . Terrain Destroyed 156 | . . . 103 53 Melee . | . . . . . Projectile 6 | . . . . 6 AOE 150 | . . . 103 47 Terrain Rammed . | . . . . . Walls Destroyed . | . . . . . Machines Disabled . | . . . . . Actions | -11 -10 -10 -9 -9 --------- Run | Yrd Mat Min Mat Min Total 1334 | 102 406 136 599 91 Wait 78 | 5 17 17 33 6 Move 986 | 70 339 74 451 52 Hop . | . . . . . Pick Up 32 | 5 9 8 7 3 Fast Attach 27 | 7 3 2 12 3 Attach 10 | . . 4 4 2 Detach 3 | . 1 1 . 1 Swap 17 | . 3 3 8 3 Drop 31 | . 6 14 10 1 Fire 150 | 15 28 13 74 20 Melee . | . . . . . Ram . | . . . . . Kick . | . . . . . Crush . | . . . . . Escape Stasis . | . . . . . Rewire . | . . . . . Trap . | . . . . . Miscellaneous . | . . . . . Route ------- -11/Scrapyard -10/Materials (discovered 3 exits: *Mat / *Min x2) -10/Mines -9/Materials (discovered 5 exits: [*Mat x3] / *Min x2) -9/Mines History --------- Turn | Location | Event 16 | -11/Scrapyard | Discovered new exit (range 15) 176 | -11/Scrapyard | Entered Materials 189 | -10/Materials | Discovered new exit (range 15) 316 | -10/Materials | Build established: Mutant 466 | -10/Materials | Discovered new exit (range 14) 594 | -10/Materials | Discovered new exit (range 16) 839 | -10/Materials | Entered Mines 844 | -10/Mines | Met a Derelict who couldn't figure out how to use a Trap Extractor 883 | -10/Mines | Met a Derelict bent on vengeance 1020 | -10/Mines | Discovered new exit (range 9) 1034 | -10/Mines | Entered Materials 1034 | -9/Materials | Evolved 2 slots: Propulsion x1, Utility x1 1054 | -9/Materials | Identified exit to Mines 1253 | -9/Materials | Destroyed 7 combat bots 1305 | -9/Materials | Discovered new exit (range 16) 1422 | -9/Materials | Discovered new exit (range 15) 1649 | -9/Materials | Repaired Imp. Ion Engine 1743 | -9/Materials | Core integrity fell below 50% 1773 | -9/Materials | Discovered new exit (range 15) 1790 | -9/Materials | Destroyed 7 combat bots 1797 | -9/Materials | Lost 4 parts (3n1w) 1853 | -9/Materials | Entered Mines 1854 | -9/Mines | Assembled infested the area 1859 | -9/Mines | Assisted by a Guerilla fighting off Assembled 1873 | -9/Mines | Core integrity fell below 20% 1905 | -9/Mines | Destroyed 17 combat bots 1934 | -9/Mines | Found the Drone Emporium 1941 | -9/Mines | Found Prototype Device 1941 | -9/Mines | Identified Thief Drone Bay 1943 | -9/Mines | Learned Materials terminal intel 1985 | -9/Mines | Destroyed by D-53 Grenadier with Mini Grenade Launcher Last Messages --------------- 01955_ System corrupted: Substantial component data lost. 01963_ C-30 ARC bursts open, deploying its payload. 01963_ D-53 Grenadier unfolds itself. 01965_ HV Slug penetrates 4U-UTR(g). 01965_ 4U-UTR(g) suffers critical hit (Destroy). 01965_ Destroyed Carbon-fiber Leg. 01965_ 4U-UTR(g) knocked back. 01965_ HV Slug penetrates Wall. 01971_ 4U-UTR(g) destroyed. 01971_ HV Slug penetrates Wall. 01973_ Machine disabled. 01974_ HV Slug penetrates D-53 Grenadier. 01977_ Aluminum Leg destroyed. 01977_ HV Slug penetrates Wall. 01979_ Machine disabled. 01981_ Imp. Aluminum Leg destroyed. 01983_ Assault Rifle destroyed. 01984_ The unstable cave ceiling collapses. Map ----- +----------------------------------------------------+ | ???????????????????????????????????????? | | ???????????????????????????????????####? | | ??????????????????????????????????# #? | | ?????????????????????????????##### #? | | ????????????????????????????## # ?? | | ????????????????????????##### # ??? | | ????????????????????????# ???? | | ??????????????????????### #???? | | ??????????????????????#" #???? | | ??????????????????????# " # #???? | | ????????????????????#?? # # #???? | | ??????????????????#??????# # * ##???? | | ?????????????????????? #?#?# # # #???? | | ???????????????#??????????## ##???? | | ?????????????????#????##???# ** ##??? | | ??????????????????????##?#?## [ #?#?? | | ????????????##?????#????????# ##??? | | ??????????????##???#?#??#???## #?#? | | ???????????#????????????#????# # ##?? | | ????????????##?#????????#????#### ####? | | ???????????#????#???#?########?## ##??? | | ???????????????#?#??### ## #???? | | ??????????##??#???#### #?##? | | ????????????#?????### ##?#? | | ??????????#?????????# #####???? | | ????????????#???????## @ ###????? | | ?????????????#?? ??# ##?##?? | | ??????????#???? ? ## ###??? | | ??????????#????????# #???? | | ?????????? ?? d #??# | | ????????? % d = #??# | | ?????????? #### ##? | | ???????????????###; % #?? | | ????????????????#;# ### #? | | ???????????????#;# ##?? #? | | ??????????????### ###?# #? | | ???????????????# ##????? #? | | ???????????????# #?#??? ? #? | | ???????????????# #?#??? ? ##? | | ???????????????## #???#??? ##?? | | ????????????????######## #?#??????#??? | | ???????????????????????# ##???????????? | | ???????????????????????# ?????????????? | | ???????????????????????? ?????????????? | | ???????????????????????? ?????????????? | | ???????????????????????????????????????? | | ???????????????????????????????????????? | | ???????????????????????????????????????? | | ???????????????????????????????????????? | | ???????????????????????????????????????? | +----------------------------------------------------+ Best States ------------- Heat Dissipation 35 Energy Generation 18 Energy Capacity 265 Matter Stores 300 Matter Capacity 300 Sight Range 16 Terrain Scan Range 16 Terrain Scan Density 110 Armor Coverage 150 Evasion (%) 55 Recoil Reduction 2 Item Schematics ----------------- None Robot Schematics ------------------ None Fabricated ------------ Nothing Alien Tech Used ----------------- None Achievements -------------- None Challenges ------------ None Game ------ Seed HoverBombRail Manual? 0 Play Time 00:20:46 Cumulative 166.9 hours Start 2024.05.11 @ 14:25:10 End 2024.05.11 @ 14:48:41 Sessions 1 Manual Loads 0 Difficulty Rogue Special Mode None Game No. 162 Rogue 157 Adventurer 5 Explorer 0 Win Type - Total 3 Types 2/0/0/1/0/0/0/0/0 Lore% 53 Gallery% 72 Achievement% 55 Wizard Run 0 Options --------- Layout 1 ASCII 0 Keyboard 0 Movement Mouse Keybinds 0 Fullscreen 1 Font 24/Terminus Map View 50x35 Zoom Use 0% Tactical HUD 1 Map Filters NONE Filters NONE Steam 1 RUN: 84221b5b-b644-472e-ae0c-2ed43133030f